Cogmind - Beta 16.1 @@@ ROGUE MODE // 2026.06.21 @ 09:53:19 Player: Annull999 Result: Destroyed by H-77 Assassin with Coil Gun Performance ------------- Evolutions (6) 3000 Regions Visited (16) 3200 Robots Destroyed (45) 225 Value Destroyed (1744) 1744 Prototype IDs (7) 140 Alien Tech Used (0) 0 Bonus (2434) 2434 TOTAL SCORE: 10743 Bonus ------- Pacifist 200 Follower Combat Kills 40 Entered DSFs 500 Met Warlord at Base 500 MAIN.C Attacked Warlord 500 Warlord Defense Kills 822 Friendly Fire -128 Cogmind --------- Core Integrity 0/1150 Matter 300/300 Energy 99/100 System Corruption 2% Temperature Hot (239) Movement Core (100) Ox1 Location -3/Proximity Caves Parts ------- > --- POWER (2) -------- (None) > --- PROPULSION (6) --- (None) > --- UTILITY (8) ------ Makeshift Trap Scanner Improved Target Analyzer Improved Transmission Jammer > --- WEAPON (3) ------- (None) > --- INVENTORY (5) ---- Antigrav System Heavy Autocannon RU-N14's Throwing Claymores v3 (3) Peak State ------------ > --- POWER ------------ Backup Power III Antimatter Reactor > --- PROPULSION ------- Flexi-carbon Leg Thunder Leg Myomer Leg Compact Wheel Compact Wheel Antigrav System > --- UTILITY ---------- Makeshift Trap Scanner Improved Target Analyzer Improved Weapon Cycler Improved Transmission Jammer Improved Transmission Jammer Advanced Drone Bay > --- WEAPON ----------- RU-N14's Throwing Claymores v3 RU-N14's Throwing Claymores v3 RU-N14's Throwing Claymores v3 > --- INVENTORY -------- Backup Propulsion III KE Penetrator RU-N14's Throwing Claymores v3 RU-N14's Throwing Claymores v3 RU-N14's Throwing Claymores v3 [Rating: 107] Favorites ----------- Power Hybrid Deuterium Engine Engine Hybrid Deuterium Engine Power Core Neutrino Core Reactor Antimatter Reactor Propulsion Improved Titanium Leg Leg Improved Titanium Leg Wheel Wheel Hover Unit Linear Gravjet Flight Unit Cesium-ion Thruster Utility Improved Transmission Jammer Device Improved Transmission Jammer Storage Small Storage Unit Processor Signal Interpreter Hackware Advanced System Shield Protection Layered Light Armor Plating Weapon RU-N14's Throwing Claymores v3 Energy Gun Beam Rifle Energy Cannon Beam Cannon Ballistic Gun Assault Rifle Ballistic Cannon Heavy Autocannon Launcher Proton Missile Launcher Special Weapon RU-N14's Throwing Claymores v3 Build | -11 -10 -10 -9 -9 -8 -7 -6 -6 -5 -5 -5 -4 -4 -4 -4 -3 ------- Run | Yrd Mat Min Mat Min Mat Fac Fac DSF Fac Ext Cet Fac Upp Upp War Pro Slots Evolved 12 | . . . 2 . 2 2 2 . 2 . . 2 . . . . Power 1 | . . . . . . . 1 . . . . . . . . . Propulsion 4 | . . . 1 . 1 . 1 . . . . 1 . . . . Utility 6 | . . . 1 . 1 2 . . 1 . . 1 . . . . Weapon 1 | . . . . . . . . . 1 . . . . . . . Parts Attached 87 | . . . 10 3 12 10 6 2 9 . . 14 1 . 20 . Power 6 | . . . . 1 . 1 1 . . . . 2 . . 1 . Engine 3 | . . . . 1 . 1 1 . . . . . . . . . Core 2 | . . . . . . . . . . . . 2 . . . . Reactor 1 | . . . . . . . . . . . . . . . 1 . Propulsion 30 | . . . 3 2 4 3 3 2 . . . 6 1 . 6 . Treads . | . . . . . . . . . . . . . . . . . Leg 12 | . . . 3 1 3 2 . . . . . 1 . . 2 . Wheel 7 | . . . . 1 1 1 1 . . . . 1 . . 2 . Hover 9 | . . . . . . . . 2 . . . 4 1 . 2 . Flight 2 | . . . . . . . 2 . . . . . . . . . Utility 29 | . . . 3 . 2 4 . . 8 . . 5 . . 7 . Device 20 | . . . 1 . 2 2 . . 6 . . 4 . . 5 . Storage . | . . . . . . . . . . . . . . . . . Processor 4 | . . . 1 . . . . . 1 . . 1 . . 1 . Hackware 1 | . . . . . . . . . 1 . . . . . . . Protection 4 | . . . 1 . . 2 . . . . . . . . 1 . Artifact . | . . . . . . . . . . . . . . . . . Weapon 22 | . . . 4 . 6 2 2 . 1 . . 1 . . 6 . Energy Gun 8 | . . . 1 . 3 2 . . 1 . . 1 . . . . Energy Cannon 3 | . . . 2 . 1 . . . . . . . . . . . Ballistic Gun 2 | . . . 1 . . . . . . . . . . . 1 . Ballistic Cannon 1 | . . . . . . . . . . . . . . . 1 . Launcher 4 | . . . . . 2 . 2 . . . . . . . . . Special Weapon 4 | . . . . . . . . . . . . . . . 4 . Impact Weapon . | . . . . . . . . . . . . . . . . . Slashing Weapon . | . . . . . . . . . . . . . . . . . Piercing Weapon . | . . . . . . . . . . . . . . . . . Special Melee Weapon . | . . . . . . . . . . . . . . . . . Unidentified Prototypes 7 | . . . . . 3 . . . . . . 2 . . 2 . Parts Lost 64 | . . . 4 2 5 9 . 6 4 9 . . 9 3 3 10 Power 6 | . . . 1 . 1 . . . . 1 . . 2 . 1 . Propulsion 25 | . . . . 2 3 1 . 4 . 3 . . 5 1 1 5 Utility 20 | . . . . . . 4 . 1 2 4 . . 2 2 1 4 Weapon 13 | . . . 3 . 1 4 . 1 2 1 . . . . . 1 Highest Loss Streak 10 | . . . 2 2 3 4 . 6 2 8 . . 9 3 2 10 To Critical Strikes . | . . . . . . . . . . . . . . . . . Average Backups 5 | . 6 6 7 5 7 7 3 4 2 5 4 3 3 4 4 3 Power . | . 1 1 1 1 . . . . . 1 1 . . . . . Propulsion 1 | . 4 4 3 1 2 3 1 2 . 1 1 . . 1 . 1 Utility . | . . . 2 1 . . . . . 1 . . 2 2 . . Weapon 2 | . 1 1 . 2 3 3 1 1 . 2 2 2 1 1 3 2 Tool/Special . | . . . . . . . . . . . . . . . . . Unused Backups 23 | . . . 11 . 2 1 1 . 1 . . 2 . . 3 2 Power 2 | . . . 1 . 1 . . . . . . . . . . . Propulsion 9 | . . . 6 . . 1 . . . . . . . . 1 1 Utility 4 | . . . 2 . 1 . . . 1 . . . . . . . Weapon 8 | . . . 2 . . . 1 . . . . 2 . . 2 1 Tool/Special . | . . . . . . . . . . . . . . . . . Average Slot Usage (%) 68 | . 85 85 77 95 87 90 59 57 68 54 13 54 64 13 53 63 Engine 6 | . 14 14 6 11 7 7 8 13 11 8 . . . . 5 . Core 1 | . . . . . . . . . . . . 9 9 . . . Leg 12 | . 28 28 28 21 14 25 6 4 . . . 1 . . 6 9 Wheel 3 | . . . . 7 16 2 6 4 . . . 4 5 2 3 4 Hover 5 | . . . . . . . . 1 11 9 . 17 23 . 4 8 Flight 1 | . . . . . . . 10 9 5 1 . . . . . . Device 12 | . . . 3 11 15 19 . . 14 17 1 9 14 8 15 25 Storage 4 | . 14 14 11 11 9 7 6 6 2 . . . . . . . Processor 4 | . . . 3 11 9 7 6 4 5 5 5 3 4 . 1 5 Hackware 1 | . . . . . . . . . 3 5 5 5 5 2 . . Protection 2 | . . . 5 . . 5 . . . . . . . . 1 4 Energy Gun 3 | . . . 6 . 9 12 . . 2 . . 2 . . . . Energy Cannon 1 | . . . 4 22 4 . . . . . . . . . . . Ballistic Gun 2 | . 28 28 8 . . . . . . . . . . . 1 . Launcher 1 | . . . . . 1 . 12 10 7 3 . . . . . . Special Weapon 1 | . . . . . . . . . . . . . . . 8 . Peak Build Rating 107 | . 6 6 13 14 27 44 39 41 70 69 17 93 87 28 107 83 Average Rating 45 | . 6 6 9 13 18 37 33 34 62 54 14 67 82 17 68 76 On Entrance 28 | 6 6 6 6 11 14 27 25 39 38 69 11 17 92 28 9 83 Avg Prop Armor Cover (%) 8 | . . . . 15 13 13 11 9 2 5 . 5 8 21 5 11 Naked Turns . | . . . . . . . . . . . . . . . . . Heaviest Build 98 | 11 11 11 18 19 23 24 39 39 48 31 1 41 36 2 98 64 Greatest Support 80 | 20 20 20 35 15 60 80 56 40 40 40 3 37 49 3 68 16 Greatest Overweight (x) 10 | . . . . 1 2 1 1 10 1 2 . 2 1 . 5 3 Average Overweight (x) . | . . . . 1 . . . 1 . . . . . . 1 2 Largest Inventory Capacity 8 | . 8 8 8 8 8 8 8 8 8 5 5 5 5 5 5 5 Average Capacity 6 | . 8 8 8 8 8 8 8 8 6 5 5 5 5 5 5 5 Most Carried 8 | . 6 7 8 7 8 8 7 8 5 5 5 5 5 5 5 4 Average Carried 5 | . 6 6 7 5 7 7 3 6 2 5 4 4 4 5 4 4 Final Capacity 8 | 8 8 8 8 8 8 8 8 8 5 5 5 5 5 5 5 5 Final Carried 8 | 6 6 7 8 5 8 8 6 4 5 5 4 4 5 5 4 4 Class Distribution -------------------- 58% | Mutant 19% | Skirmisher 8% | Gunner 6% | Scavenger-Gunner Dominant Class ---------------- Mutant | -10/Mines Mutant | -9/Materials Mutant | -9/Mines Skirmisher | -8/Materials Skirmisher | -7/Factory Mutant | -6/Factory Mutant | -6/DSF Mutant | -5/Factory Mutant | -5/Extension Mutant | -5/Cetus Mutant | -4/Factory Mutant | -4/Upper Caves Mutant | -4/Upper Caves Scavenger-Gunner | -4/Warlord Scavenger-Mutant | -3/Proximity Caves Resources | -11 -10 -10 -9 -9 -8 -7 -6 -6 -5 -5 -5 -4 -4 -4 -4 -3 ----------- Run | Yrd Mat Min Mat Min Mat Fac Fac DSF Fac Ext Cet Fac Upp Upp War Pro Matter Collected 1388 | 200 . . 204 . 32 208 . 17 68 10 . . 172 . 477 . Remotely . | . . . . . . . . . . . . . . . . . Salvage Created 1765 | . . . 532 105 72 441 . . 311 27 . . . . 277 . Parts 108 | . . . 42 . 5 31 . . 18 2 . . . . 10 . Haulers Intercepted . | . . . . . . . . . . . . . . . . . Recyclers Shooed 1 | . . . . . 1 . . . . . . . . . . . Parts Field Recycled . | . . . . . . . . . . . . . . . . . Retrieved Matter . | . . . . . . . . . . . . . . . . . Parts Self-Destructed 1 | . . . . . . . . . . . . . . . . 1 Prevented 2 | . . . . . . . . . . . . . . . . 2 Parts Restored . | . . . . . . . . . . . . . . . . . Kills | -11 -10 -10 -9 -9 -8 -7 -6 -6 -5 -5 -5 -4 -4 -4 -4 -3 ------- Run | Yrd Mat Min Mat Min Mat Fac Fac DSF Fac Ext Cet Fac Upp Upp War Pro Combat Hostiles Destroyed 39 | . . . 15 2 2 10 . . 4 . . . . . 6 . Guns 23 | . . . 13 . . 10 . . . . . . . . . . Cannons 6 | . . . 2 2 . . . . . . . . . . 2 . AOE 9 | . . . . . 2 . . . 3 . . . . . 4 . Classes Destroyed 10 | . . . 4 . . 3 . . 1 1 . . . . 1 . Builder 2 | . . . . . . . . . 2 . . . . . . . Operator 1 | . . . 1 . . . . . . . . . . . . . Watcher 1 | . . . . . . . . . . 1 . . . . . . Swarmer 10 | . . . 7 . . 3 . . . . . . . . . . Grunt 21 | . . . 7 2 2 2 . . 3 . . . . . 5 . Duelist 1 | . . . 1 . . . . . . . . . . . . . Sentry 2 | . . . . . . 2 . . . . . . . . . . Hunter 2 | . . . . . . 1 . . 1 . . . . . . . Programmer 3 | . . . . . . 2 . . . . . . . . 1 . Surgeon 1 | . . . . . . . . . . . . . . . 1 . Thug 1 | . . . 1 . . . . . . . . . . . . . Best Kill Streak 4 | . . . 4 2 2 3 . . 3 1 . . . . 4 . Combat Bots Only 4 | . . . 4 2 2 3 . . 3 . . . . . 4 . Max Kills in Single Turn 4 | . . . 1 1 2 1 . . 2 1 . . . . 4 . Gunslinging . | . . . . . . . . . . . . . . . . . Exploded 4 | . . . . . 2 . . . 2 . . . . . 4 . Melee . | . . . . . . . . . . . . . . . . . Uniques/NPCs Destroyed . | . . . . . . . . . . . . . . . . . Combat | -11 -10 -10 -9 -9 -8 -7 -6 -6 -5 -5 -5 -4 -4 -4 -4 -3 -------- Run | Yrd Mat Min Mat Min Mat Fac Fac DSF Fac Ext Cet Fac Upp Upp War Pro Hostile Shots Fired 969 | . . . 143 10 76 234 . 40 41 111 4 3 113 28 80 86 Missed 339 | . . . 39 3 24 92 . 14 19 44 1 1 42 10 24 26 Hits 630 | . . . 104 7 52 142 . 26 22 67 3 2 71 18 56 60 Melee 9 | . . . 5 . . . . . . . . . . . 4 . Projectile 621 | . . . 99 7 52 142 . 26 22 67 3 2 71 18 52 60 Critical Strikes 21 | . . . 3 . 1 2 . 1 . 2 1 . 3 1 4 3 Part Disruptions 3 | . . . . . . . . 3 . . . . . . . . Damage Taken 10346 | . . . 1104 105 774 1557 . 618 297 1390 83 4 1363 367 1497 1187 Core 2906 | . . . 250 35 273 146 . 91 32 839 83 . 342 280 106 429 Absorbed by Shields . | . . . . . . . . . . . . . . . . . Ignored by Resistances 81 | . . . . . . . . . 24 57 . . . . . . Regen/Repaired (Parts) 11 | . . . . . . . . . . . . . . . 11 . Core Remaining (%) 64 | 100 . 100 . 28 50 79 . 89 . . 4 . . . . . Volleys Fired 111 | . . . 44 9 1 30 . . 8 2 . . . . 17 . Largest 3 | . . . 2 1 2 2 . . 2 1 . . . . 3 . Hottest 119 | . . . 79 60 92 119 . . 91 36 . . . . 109 . Shots Fired 187 | . . . 84 9 2 49 . . 12 2 . . . . 29 . Gun 146 | . . . 82 . 1 49 . . 4 . . . . . 10 . Cannon 23 | . . . 2 9 . . . . . . . . . . 12 . Launcher 11 | . . . . . 1 . . . 8 2 . . . . . . Special 7 | . . . . . . . . . . . . . . . 7 . Kinetic 64 | . . . 42 . . . . . . . . . . . 22 . Thermal 92 | . . . 42 9 1 40 . . . . . . . . . . Explosive 8 | . . . . . 1 . . . . . . . . . 7 . Electromagnetic 23 | . . . . . . 9 . . 12 2 . . . . . . Robot Hit Streak 14 | . . . 14 8 1 6 . . 6 2 . . . . 4 . Robot Miss Streak 5 | . . . 5 1 1 3 . . 1 . . . . . 4 . Penetration Max . | . . . . . . . . . . . . . . . . . Secondary Targets 3 | . . . 3 . . . . . . . . . . . . . Max Gunslinging Chain 1 | . . . 1 . . . . . . . . . . . . . Shots Hit Robots 117 | . . . 52 7 1 33 . . 8 2 . . . . 14 . Core Hits 85 | . . . 27 3 5 21 . . 10 2 . . . . 17 . Critical Kills . | . . . . . . . . . . . . . . . . . Critical Parts Destroyed . | . . . . . . . . . . . . . . . . . Critical Strikes 3 | . . . 1 . . . . . . . . . . . 2 . Burn 1 | . . . 1 . . . . . . . . . . . . . Blast 2 | . . . . . . . . . . . . . . . 2 . Melee Attacks . | . . . . . . . . . . . . . . . . . Impact . | . . . . . . . . . . . . . . . . . Slashing . | . . . . . . . . . . . . . . . . . Piercing . | . . . . . . . . . . . . . . . . . Sneak Attacks . | . . . . . . . . . . . . . . . . . Combat Hostiles . | . . . . . . . . . . . . . . . . . Follow-up Attacks . | . . . . . . . . . . . . . . . . . Damage Inflicted 4709 | . . . 776 121 202 564 . . 780 165 . 8 . . 2093 . Guns 1452 | . . . 732 . . 561 . . 24 . . . . . 135 . Cannons 835 | . . . 35 121 . . . . . . . . . . 679 . Explosions 2228 | . . . . . 162 . . . 756 137 . . . . 1173 . Melee . | . . . . . . . . . . . . . . . . . Ramming 88 | . . . 9 . 40 3 . . . 28 . 8 . . . . Kinetic 1155 | . . . 341 . . . . . . . . . . . 814 . Thermal 1069 | . . . 426 121 . 452 . . 70 . . . . . . . Explosive 1335 | . . . . . 162 . . . . . . . . . 1173 . Electromagnetic 956 | . . . . . . 109 . . 710 137 . . . . . . Impact . | . . . . . . . . . . . . . . . . . Slashing 106 | . . . . . . . . . . . . . . . 106 . Piercing . | . . . . . . . . . . . . . . . . . Highest Corruption 8 | . . . . . . 8 . 1 . 1 1 . . . 2 2 Average Corruption 2 | . . . . . . 3 . 1 . 1 1 . . . 1 2 Corruption Purged . | . . . . . . . . . . . . . . . . . Corruption Blocked . | . . . . . . . . . . . . . . . . . Effects 13 | . . . . . . 9 . . . . . . . . 3 1 Message Errors 1 | . . . . . . 1 . . . . . . . . . . Matter Fused 4 | . . . . . . 3 . . . . . . . . 1 . Energy Discharges 1 | . . . . . . . . . . . . . . . . 1 Parts Rejected 2 | . . . . . . 2 . . . . . . . . . . Data Loss (minor) 3 | . . . . . . 1 . . . . . . . . 2 . Data Loss (major) 2 | . . . . . . 2 . . . . . . . . . . Overload Shots . | . . . . . . . . . . . . . . . . . Overflow Damage 98 | . . . . . . . . . 25 19 . . . . 54 . Projectiles 53 | . . . . . . . . . . . . . . . 53 . Explosions 45 | . . . . . . . . . 25 19 . . . . 1 . Melee . | . . . . . . . . . . . . . . . . . Knockbacks 5 | . . . . . . . . . . . . . . . 5 . Impact . | . . . . . . . . . . . . . . . . . Kinetic 5 | . . . . . . . . . . . . . . . 5 . Secondary . | . . . . . . . . . . . . . . . . . Self-Inflicted Damage 93 | . . . . . . . . . . 89 . 4 . . . . Shots 3 | . . . . . . . . . . 3 . . . . . . Rammed 9 | . . . . . . . . . . 8 . 1 . . . . Targets Rammed 21 | . . . 3 . 8 1 . . . 8 . 1 . . . . Kicked 12 | . . . 3 . 8 1 . . . . . . . . . . Crushed . | . . . . . . . . . . . . . . . . . Highest Temperature 351 | . . . 213 207 42 282 . . . . . 5 351 . 288 316 Average Temperature 101 | . . . 100 109 25 92 . . . . . 3 115 . 114 273 Received Heat Transfer 2053 | . . . 258 63 369 231 . . 111 132 9 . 296 84 114 386 Effects 3 | . . . . . . . . . . . . . 1 . 2 . Shutdowns 1 | . . . . . . . . . . . . . 1 . . . Interference 2 | . . . . . . . . . . . . . . . 2 . Siege Activations . | . . . . . . . . . . . . . . . . . Martial Activations . | . . . . . . . . . . . . . . . . . Shielding Activations . | . . . . . . . . . . . . . . . . . Robots Disrupted . | . . . . . . . . . . . . . . . . . Combat Hostiles . | . . . . . . . . . . . . . . . . . Robots Corrupted 1 | . . . . . . . . . 1 . . . . . . . Combat Hostiles 1 | . . . . . . . . . 1 . . . . . . . Parts Fried 3 | . . . . . . . . . 3 . . . . . . . Impact Corruptions . | . . . . . . . . . . . . . . . . . Robots Melted . | . . . . . . . . . . . . . . . . . Combat Hostiles . | . . . . . . . . . . . . . . . . . Parts Melted 8 | . . . 3 1 . 4 . . . . . . . . . . Heat Transferred 2344 | . . . 1147 259 . 888 . . 50 . . . . . . . Parts Sabotaged 3 | . . . . . . . . . . . . . . . 3 . Parts Stolen . | . . . . . . . . . . . . . . . . . Parts Stripped . | . . . . . . . . . . . . . . . . . Power Chain Reactions 2 | . . . . . . . . . 1 1 . . . . . . Alert | -11 -10 -10 -9 -9 -8 -7 -6 -6 -5 -5 -5 -4 -4 -4 -4 -3 ------- Run | Yrd Mat Min Mat Min Mat Fac Fac DSF Fac Ext Cet Fac Upp Upp War Pro Maximum Alert Level 1 | . . . 1 . . . . . . . . . . . . . Low Security (%) 98 | . 100 100 95 100 100 100 100 100 100 100 100 100 . . . . Level 1 1 | . . . 4 . . . . . . . . . . . . . Level 2 . | . . . . . . . . . . . . . . . . . Level 3 . | . . . . . . . . . . . . . . . . . Level 4 . | . . . . . . . . . . . . . . . . . Level 5 . | . . . . . . . . . . . . . . . . . High Security . | . . . . . . . . . . . . . . . . . Max Security . | . . . . . . . . . . . . . . . . . Peak Influence 206 | . . . 206 108 105 90 19 2 110 30 . 15 . . . . Initial 63 | . . . . 63 18 40 7 2 . 29 . . . . . . Average 41 | . . . 108 77 27 28 2 . 34 10 . 1 . . . . Influence Increases 1815 | . . . 478 65 275 320 16 . 183 108 . 20 150 45 155 . Destroy 0b10 Robot/C 820 | . . . 340 40 40 200 . . 80 . . . . . 120 . Destroy 0b10 Robot/NC 25 | . . . 5 . . . . . 10 5 . . . . 5 . Destroy Leader 152 | . . . 70 10 . 60 . . 10 2 . . . . . . Allied During Kill 11 | . . . 11 . . . . . . . . . . . . . Successful Hack 112 | . . . 7 . 17 28 16 . 8 31 . 5 . . . . Disable Machine 75 | . . . 15 15 30 . . . 15 . . . . . . . Destroy Structure 20 | . . . . . 8 2 . . . 10 . . . . . . Partial Spotted 15 | . . . . . . . . . . . . 15 . . . . Lose Combat Pursuer 585 | . . . 30 . 180 30 . . 60 60 . . 150 45 30 . Influence Decreases 1815 | . . . 315 180 233 394 28 4 123 168 . 20 133 47 167 3 Entered New Map 244 | . . . . 100 30 50 9 2 . 31 . . . 4 15 3 Time Decay 1230 | . . . 266 60 115 294 19 . 103 75 . 20 113 43 122 . Lost Part 294 | . . . 40 20 50 50 . 2 20 62 . . 20 . 30 . Lost Ally 9 | . . . 9 . . . . . . . . . . . . . Purge Threat 38 | . . . . . 38 . . . . . . . . . . . Squads Dispatched 22 | . . . 4 . 2 5 2 1 5 2 . 1 . . . . Investigation 5 | . . . . . 1 1 2 . 1 . . . . . . . Extermination 5 | . . . . . . 3 . . 1 . . 1 . . . . Reinforcement 12 | . . . 4 . 1 1 . 1 3 2 . . . . . . Assault . | . . . . . . . . . . . . . . . . . Garrison . | . . . . . . . . . . . . . . . . . Intercept . | . . . . . . . . . . . . . . . . . Searches Triggered . | . . . . . . . . . . . . . . . . . Construction Impeded 2 | . . . . . . . . . 1 1 . . . . . . Haulers Reinforced . | . . . . . . . . . . . . . . . . . Active Scanning Responses . | . . . . . . . . . . . . . . . . . Cargo Convoy Interrupts . | . . . . . . . . . . . . . . . . . Stealth | -11 -10 -10 -9 -9 -8 -7 -6 -6 -5 -5 -5 -4 -4 -4 -4 -3 --------- Run | Yrd Mat Min Mat Min Mat Fac Fac DSF Fac Ext Cet Fac Upp Upp War Pro Distress Signals 13 | . . 1 6 . 2 1 . . . 2 1 . . . . . Communications Jammed 11 | . . . . . . . . . 4 1 . . . . 6 . Distress Signals 11 | . . . . . . . . . 4 1 . . . . 6 . Times Spotted 183 | . . . 31 2 17 17 . 3 14 16 5 3 21 3 48 3 Peak Tracking Total 18 | . . . 6 2 11 5 . 2 4 10 5 3 11 3 18 3 Tactical Retreats 19 | . . . 2 . 5 1 . . 2 2 . . 5 1 1 . Traps | -11 -10 -10 -9 -9 -8 -7 -6 -6 -5 -5 -5 -4 -4 -4 -4 -3 ------- Run | Yrd Mat Min Mat Min Mat Fac Fac DSF Fac Ext Cet Fac Upp Upp War Pro Traps Triggered 4 | . . . . . 1 . . 1 1 1 . . . . . . Indirectly . | . . . . . . . . . . . . . . . . . Trap Hack Attempts . | . . . . . . . . . . . . . . . . . Triggered . | . . . . . . . . . . . . . . . . . Disarmed . | . . . . . . . . . . . . . . . . . Reprogrammed . | . . . . . . . . . . . . . . . . . Reused . | . . . . . . . . . . . . . . . . . Traps Extracted . | . . . . . . . . . . . . . . . . . Installed . | . . . . . . . . . . . . . . . . . Triggered . | . . . . . . . . . . . . . . . . . Machines | -11 -10 -10 -9 -9 -8 -7 -6 -6 -5 -5 -5 -4 -4 -4 -4 -3 ---------- Run | Yrd Mat Min Mat Min Mat Fac Fac DSF Fac Ext Cet Fac Upp Upp War Pro Machines Disabled 5 | . . . 1 1 2 . . . 1 . . . . . . . Max in Single Turn 2 | . . . . 1 2 . . . 1 . . . . . . . Machines Repaired . | . . . . . . . . . . . . . . . . . Machines Dismantled . | . . . . . . . . . . . . . . . . . Machines Sabotaged . | . . . . . . . . . . . . . . . . . Overloaded Fab Kills . | . . . . . . . . . . . . . . . . . Hacking | -11 -10 -10 -9 -9 -8 -7 -6 -6 -5 -5 -5 -4 -4 -4 -4 -3 --------- Run | Yrd Mat Min Mat Min Mat Fac Fac DSF Fac Ext Cet Fac Upp Upp War Pro Machines Accessed 25 | . . . 2 . 5 4 4 . 5 2 . 3 . . . . Terminals 22 | . . . 1 . 5 4 3 . 4 2 . 3 . . . . Fabricators 1 | . . . . . . . . . 1 . . . . . . . Repair Stations . | . . . . . . . . . . . . . . . . . Recycling Units . | . . . . . . . . . . . . . . . . . Scanalyzers 2 | . . . 1 . . . 1 . . . . . . . . . Garrison Access . | . . . . . . . . . . . . . . . . . Total Hacks 79 | . . . 5 . 18 11 12 . 17 3 . 13 . . . . Successful 35 | . . . 3 . 9 4 5 . 7 2 . 5 . . . . Failed 44 | . . . 2 . 9 7 7 . 10 1 . 8 . . . . Catastrophic 8 | . . . . . 2 1 2 . 1 1 . 1 . . . . Database Lockouts . | . . . . . . . . . . . . . . . . . Manual 39 | . . . . . 15 5 5 . 3 2 . 9 . . . . Terminals 71 | . . . 2 . 18 11 9 . 15 3 . 13 . . . . Fabricators 2 | . . . . . . . . . 2 . . . . . . . Repair Stations . | . . . . . . . . . . . . . . . . . Recycling Units . | . . . . . . . . . . . . . . . . . Scanalyzers 6 | . . . 3 . . . 3 . . . . . . . . . Garrison Access . | . . . . . . . . . . . . . . . . . Terminal Hacks 18 | . . . 1 . 6 3 2 . 4 1 . 1 . . . . Record 3 | . . . . . 2 . . . 1 . . . . . . . Open Door 2 | . . . . . . . . . 1 1 . . . . . . Open DSF 4 | . . . . . . 2 1 . 1 . . . . . . . Level Access Points 1 | . . . . . 1 . . . . . . . . . . . Branch Access Points 4 | . . . 1 . 1 . 1 . 1 . . . . . . . Alert Level 1 | . . . . . . . . . . . . 1 . . . . Unreport Threat 1 | . . . . . 1 . . . . . . . . . . . Patrol Status 1 | . . . . . . 1 . . . . . . . . . . Zone Layout 1 | . . . . . 1 . . . . . . . . . . . Fabricator Hacks 1 | . . . . . . . . . 1 . . . . . . . Load Schematic 1 | . . . . . . . . . 1 . . . . . . . Repair Station Hacks . | . . . . . . . . . . . . . . . . . Recycling Unit Hacks . | . . . . . . . . . . . . . . . . . Scanalyzer 3 | . . . 2 . . . 1 . . . . . . . . . Insert Component 2 | . . . 1 . . . 1 . . . . . . . . . Analyze 1 | . . . 1 . . . . . . . . . . . . . Garrison Access Hacks . | . . . . . . . . . . . . . . . . . Unauthorized Hacks 13 | . . . . . 3 1 2 . 2 1 . 4 . . . . Terminals 13 | . . . . . 3 1 2 . 2 1 . 4 . . . . Assimilate 2 | . . . . . . . . . . . . 2 . . . . Botnet 11 | . . . . . 3 1 2 . 2 1 . 2 . . . . Fabricators . | . . . . . . . . . . . . . . . . . Repair Stations . | . . . . . . . . . . . . . . . . . Recycling Units . | . . . . . . . . . . . . . . . . . Scanalyzers . | . . . . . . . . . . . . . . . . . Garrison Access . | . . . . . . . . . . . . . . . . . Data Cores Recovered . | . . . . . . . . . . . . . . . . . Used . | . . . . . . . . . . . . . . . . . Hacking Detections 22 | . . . 2 . 5 4 4 . 4 1 . 2 . . . . Full Trace Events 5 | . . . . . 1 1 2 . 1 . . . . . . . Feedback Events . | . . . . . . . . . . . . . . . . . Feedback Blocked . | . . . . . . . . . . . . . . . . . Robot Schematics Acquired . | . . . . . . . . . . . . . . . . . Robots Built . | . . . . . . . . . . . . . . . . . Authchips . | . . . . . . . . . . . . . . . . . Time . | . . . . . . . . . . . . . . . . . Total Robot Build Rating . | . . . . . . . . . . . . . . . . . Part Schematics Acquired 1 | . . . 1 . . . . . . . . . . . . . Parts Built . | . . . . . . . . . . . . . . . . . Authchips . | . . . . . . . . . . . . . . . . . Time . | . . . . . . . . . . . . . . . . . Total Part Build Rating . | . . . . . . . . . . . . . . . . . Part Studies Acquired . | . . . . . . . . . . . . . . . . . Parts Repaired . | . . . . . . . . . . . . . . . . . Time . | . . . . . . . . . . . . . . . . . Parts Recycled . | . . . . . . . . . . . . . . . . . Recycled Matter . | . . . . . . . . . . . . . . . . . Retrieved Matter . | . . . . . . . . . . . . . . . . . Retrieved Components . | . . . . . . . . . . . . . . . . . Parts Scanalyzed 2 | . . . 1 . . . 1 . . . . . . . . . Part Schematics Acquired 1 | . . . 1 . . . . . . . . . . . . . Parts Damaged 1 | . . . . . . . 1 . . . . . . . . . Bothacking | -11 -10 -10 -9 -9 -8 -7 -6 -6 -5 -5 -5 -4 -4 -4 -4 -3 ------------ Run | Yrd Mat Min Mat Min Mat Fac Fac DSF Fac Ext Cet Fac Upp Upp War Pro Used RIF Installer . | . . . . . . . . . . . . . . . . . Robots Hacked . | . . . . . . . . . . . . . . . . . Non-combat . | . . . . . . . . . . . . . . . . . Combat . | . . . . . . . . . . . . . . . . . Robot Hacks Applied . | . . . . . . . . . . . . . . . . . Relay Couplers Released . | . . . . . . . . . . . . . . . . . Fabnet Peak Effective % . | . . . . . . . . . . . . . . . . . Robots Rewired . | . . . . . . . . . . . . . . . . . Allies Hacked . | . . . . . . . . . . . . . . . . . Hacks Repelled . | . . . . . . . . . . . . . . . . . Allies | -11 -10 -10 -9 -9 -8 -7 -6 -6 -5 -5 -5 -4 -4 -4 -4 -3 -------- Run | Yrd Mat Min Mat Min Mat Fac Fac DSF Fac Ext Cet Fac Upp Upp War Pro Total Allies 3 | . . 2 . . . . . . . . . 1 . . . . Largest Group 2 | . . . 2 . . . . . . . . 1 . . . . Highest-Rated Group 43 | . . . 43 . . . . . . . . 10 . . . . Highest-Rated Ally 31 | . . . 31 . . . . . . . . 10 . . . . Total Orders . | . . . . . . . . . . . . . . . . . Ally Attacks 10 | . . . 10 . . . . . . . . . . . . . Total Damage 127 | . . . 127 . . . . . . . . . . . . . Kills 2 | . . . 2 . . . . . . . . . . . . . Allies Corrupted . | . . . . . . . . . . . . . . . . . Allies Melted . | . . . . . . . . . . . . . . . . . Intel | -11 -10 -10 -9 -9 -8 -7 -6 -6 -5 -5 -5 -4 -4 -4 -4 -3 ------- Run | Yrd Mat Min Mat Min Mat Fac Fac DSF Fac Ext Cet Fac Upp Upp War Pro Active Infowar (turns) 2048 | . . . 15 . 304 317 . . 162 197 17 88 425 . 512 11 Sensors 674 | . . . 15 . 296 153 . . 13 197 . . . . . . Terrain 566 | . . . . . 249 317 . . . . . . . . . . Traps 409 | . . . . . . . . . . . . . . . 398 11 Jamming 1242 | . . . . . . . . . 162 165 17 88 425 . 375 10 Robot Analysis Total . | . . . . . . . . . . . . . . . . . Derelict Logs Recovered 3 | . . 1 . 1 . . . . . . . . 1 . . . Drone Launches 4 | . . . . . . . . . . . . 2 2 . . . Drone Recoveries 3 | . . . . . . . . . . . . 2 1 . . . Exploration | -11 -10 -10 -9 -9 -8 -7 -6 -6 -5 -5 -5 -4 -4 -4 -4 -3 ------------- Run | Yrd Mat Min Mat Min Mat Fac Fac DSF Fac Ext Cet Fac Upp Upp War Pro Turns Passed 4623 | . 17 86 628 125 320 752 148 77 410 245 30 163 426 171 917 108 Spaces Moved 4350 | 1 15 71 371 103 304 545 130 53 482 394 55 274 558 341 579 74 Core 800 | . . . . . . . . 4 . 77 55 9 41 341 268 5 Treads . | . . . . . . . . . . . . . . . . . Legs 958 | 1 15 71 371 7 23 340 . 1 . . . . . . 129 . Wheels 949 | . . . . 96 281 205 130 34 . . . . . . 134 69 Hover 1643 | . . . . . . . . 14 482 317 . 265 517 . 48 . Flight . | . . . . . . . . . . . . . . . . . Fastest Speed 32 | 120 120 120 120 95 80 95 100 56 56 50 50 32 33 50 50 100 Average Speed 91 | 120 120 120 120 101 86 116 104 133 74 55 50 46 75 50 137 141 Slowest Speed 550 | 120 120 120 120 190 130 130 115 550 106 150 50 200 125 50 490 150 Overloaded Moves . | . . . . . . . . . . . . . . . . . Propulsion Burnouts . | . . . . . . . . . . . . . . . . . Robots Hopped . | . . . . . . . . . . . . . . . . . Potential Cave-ins . | . . . . . . . . . . . . . . . . . Cave-ins Triggered . | . . . . . . . . . . . . . . . . . Exploration Rate (%) 33 | 2 7 27 37 32 37 21 5 82 18 62 23 11 71 57 58 11 Regions Visited 16 Branch Regions 8 Pre-discovered Areas 1 | . . . . 1 . . . . . . . . . . . . Known Exits Taken 8 | . . 1 1 1 1 1 1 . 1 . . . 1 . . . Unknown Exits Taken 7 | 1 1 . . . . . . . . 1 1 1 . 1 1 . Scrap Searched 5 | . . 1 . . . . . . . . . . 1 3 . . Spaces Dug . | . . . . . . . . . . . . . . . . . Terrain Destroyed 73 | . . . . . 13 . . . . 5 . . . . 55 . Melee . | . . . . . . . . . . . . . . . . . Projectile 8 | . . . . . . . . . . . . . . . 8 . AOE 65 | . . . . . 13 . . . . 5 . . . . 47 . Terrain Rammed . | . . . . . . . . . . . . . . . . . Walls Destroyed . | . . . . . . . . . . . . . . . . . Machines Disabled . | . . . . . . . . . . . . . . . . . Actions | -11 -10 -10 -9 -9 -8 -7 -6 -6 -5 -5 -5 -4 -4 -4 -4 -3 --------- Run | Yrd Mat Min Mat Min Mat Fac Fac DSF Fac Ext Cet Fac Upp Upp War Pro Total 4816 | . 14 72 472 114 356 618 143 58 521 417 56 312 560 340 685 78 Wait 87 | . . 1 21 . 12 12 . . 2 3 1 3 . . 28 4 Move 4334 | . 14 70 370 102 303 544 129 52 481 393 54 273 557 340 578 74 Hop . | . . . . . . . . . . . . . . . . . Pick Up 103 | . . 1 16 . 14 13 4 3 10 . . 15 1 . 26 . Fast Attach . | . . . . . . . . . . . . . . . . . Attach 82 | . . . 8 3 10 9 6 3 9 . 1 14 . . 19 . Detach 4 | . . . . . 1 . 1 . . . . 1 . . 1 . Swap 15 | . . . 2 . 5 2 . . 1 . . . 1 . 4 . Drop 39 | . . . 8 . 2 7 3 . . 1 . 5 1 . 12 . Fire 111 | . . . 44 9 1 30 . . 8 2 . . . . 17 . Melee . | . . . . . . . . . . . . . . . . . Ram 9 | . . . . . . . . . . 8 . 1 . . . . Kick 12 | . . . 3 . 8 1 . . . . . . . . . . Crush . | . . . . . . . . . . . . . . . . . Escape Stasis 18 | . . . . . . . . . 8 10 . . . . . . Rewire 2 | . . . . . . . . . 2 . . . . . . . Trap . | . . . . . . . . . . . . . . . . . Miscellaneous . | . . . . . . . . . . . . . . . . . Route ------- -11/Scrapyard -10/Materials -10/Mines -9/Materials (discovered 2 exits: *Min x2) -9/Mines -8/Materials (discovered 3 exits: *Fac x3) -7/Factory -6/Factory (discovered 3 exits: Low x2 / DSF) -6/DSF -5/Factory (discovered 4 exits: Upp x2 / *Ext x2) -5/Extension (discovered 2 exits: *Fac / [*Cet]) -5/Cetus -4/Factory -4/Upper Caves -4/Upper Caves -4/Warlord -3/Proximity Caves History --------- Turn | Location | Event 1 | -11/Scrapyard | Discovered new exit (range 0) 1 | -11/Scrapyard | Entered Materials 1 | -10/Materials | Discovered new exit (range 14) 18 | -10/Materials | Entered Mines 65 | -10/Mines | Identified exit to Materials 67 | -10/Mines | Assembled infested the area 72 | -10/Mines | Assisted by a Guerilla fighting off Assembled 104 | -10/Mines | Entered Materials 104 | -9/Materials | Accompanied by 2 allies 104 | -9/Materials | Evolved 2 slots: Propulsion x1, Utility x1 109 | -9/Materials | Led the pair of lost Derelicts to an unsafe place 315 | -9/Materials | Build established: Mutant 559 | -9/Materials | Core integrity fell below 50% 680 | -9/Materials | Identified exit to Mines 732 | -9/Materials | Entered Mines 773 | -9/Mines | Learned location of Zion (-7) 799 | -9/Mines | Discovered new exit (range 13) 856 | -9/Mines | Identified exit to Materials 857 | -9/Mines | Entered Materials 857 | -8/Materials | Evolved 2 slots: Propulsion x1, Utility x1 1013 | -8/Materials | Identified exit to Factory 1140 | -8/Materials | Lost 3 parts (1p2n) 1177 | -8/Materials | Entered Factory 1177 | -7/Factory | Evolved 2 slots: Utility x2 1281 | -7/Factory | Build established: Skirmisher 1680 | -7/Factory | Lost 4 parts (1n1u2w) 1895 | -7/Factory | Build established: Mutant 1917 | -7/Factory | Lost 3 parts (2u1w) 1925 | -7/Factory | Discovered new exit (range 5) 1928 | -7/Factory | Identified exit to Factory 1929 | -7/Factory | Entered another Factory area 1929 | -6/Factory | Evolved 2 slots: Power x1, Propulsion x1 1956 | -6/Factory | Identified exit to Lower Caves 2076 | -6/Factory | Identified exit to DSF 2077 | -6/Factory | Entered DSF 2091 | -6/DSF | Additional patrols routed to DSF 2138 | -6/DSF | Discovered new exit (range 14) 2154 | -6/DSF | Entered Factory 2154 | -5/Factory | Evolved 2 slots: Utility x1, Weapon x1 2163 | -5/Factory | Lost 6 parts (4n1u1w) 2324 | -5/Factory | Identified exit to Upper Caves 2324 | -5/Factory | Identified exit to Extension 2456 | -5/Factory | Spotted B-75 Beast 2564 | -5/Factory | Entered Extension 2606 | -5/Extension | Spotted B-75 Beast 2750 | -5/Extension | Spotted B-75 Beast 2788 | -5/Extension | Core integrity fell below 50% 2799 | -5/Extension | Lost 8 parts (1p2n4u1w) 2801 | -5/Extension | Core integrity fell below 20% 2801 | -5/Extension | Discovered new exit (range 15) 2801 | -5/Extension | Discovered new exit (range 15) 2809 | -5/Extension | Entered Cetus 2817 | -5/Cetus | Spotted Cetus Guard 2817 | -5/Cetus | Spotted Cetus Guard 2818 | -5/Cetus | Spotted Cetus Guard 2818 | -5/Cetus | Spotted Cetus Guard 2831 | -5/Cetus | Discovered new exit (range 15) 2839 | -5/Cetus | Entered Factory 2839 | -4/Factory | Evolved 2 slots: Propulsion x1, Utility x1 2951 | -4/Factory | Spotted B-86 Titan 2989 | -4/Factory | Discovered new exit (range 13) 3002 | -4/Factory | Entered Upper Caves 3002 | -4/Upper Caves | Accompanied by 1 ally 3004 | -4/Upper Caves | Attracted the attention of an 0b10 checkpoint 3022 | -4/Upper Caves | Spotted B-86 Titan 3394 | -4/Upper Caves | Identified exit to Upper Caves 3428 | -4/Upper Caves | Entered another Upper Caves area 3445 | -4/Upper Caves | Lost 9 parts (2p5n2u) 3505 | -4/Upper Caves | Core integrity fell below 50% 3532 | -4/Upper Caves | Encountered a Warlord checkpoint 3553 | -4/Upper Caves | Lost 3 parts (1n2u) 3596 | -4/Upper Caves | Discovered new exit (range 7) 3599 | -4/Upper Caves | Entered Warlord 3691 | -4/Warlord | Met Warlord 3713 | -4/Warlord | Warlord's base attacked by MAIN.C 3738 | -4/Warlord | Found Prototype Special Weapon 3739 | -4/Warlord | Identified RU-N14's Throwing Claymores v3 3742 | -4/Warlord | Found RU-N14's Throwing Claymores v3 3746 | -4/Warlord | Found RU-N14's Throwing Claymores v3 3748 | -4/Warlord | Found RU-N14's Throwing Claymores v3 3757 | -4/Warlord | Found RU-N14's Throwing Claymores v3 3763 | -4/Warlord | Found RU-N14's Throwing Claymores v3 4063 | -4/Warlord | Warlord forces counterattacked 4186 | -4/Warlord | Spotted Executioner 4192 | -4/Warlord | Spotted Executioner 4196 | -4/Warlord | Spotted Executioner 4197 | -4/Warlord | Spotted Striker 4202 | -4/Warlord | Spotted Executioner 4269 | -4/Warlord | P-80 Master assimilated allied RQ-NCT(m) 4275 | -4/Warlord | Found Prototype Ballistic Cannon 4277 | -4/Warlord | Identified Hvy. Autocannon 4283 | -4/Warlord | Found Hvy. Autocannon 4285 | -4/Warlord | Lost 19 allies 4308 | -4/Warlord | Spotted Striker 4372 | -4/Warlord | Spotted B-90 Cyclops 4388 | -4/Warlord | Warlord base infiltrated, sounded retreat 4491 | -4/Warlord | Discovered new exit (range 15) 4513 | -4/Warlord | Spotted Executioner 4513 | -4/Warlord | Spotted Executioner 4516 | -4/Warlord | Entered Proximity Caves 4563 | -3/Proximity Caves | Spotted B-86 Titan 4622 | -3/Proximity Caves | Core integrity fell below 20% 4624 | -3/Proximity Caves | Destroyed by H-77 Assassin with Coil Gun Last Messages --------------- 04613_ Flexi-carbon Leg destroyed. 04613_ Imp. Weapon Cycler destroyed. 04613_ Critical hit (Blast). 04613_ Penetrated by Slug. 04613_ Hvy. Autocannon destroyed. 04613_ Penetrated by Slug. 04616_ Slug penetrates H-77 Assassin. 04616_ Slug penetrates Wall. 04617_ Penetrated by Slug. 04617_ Antigrav System destroyed. 04617_ Slug penetrates Wall. 04618_ Com. Wheel destroyed. 04619_ Penetrated by Slug. 04621_ Critical hit (Meltdown: +350). 04621_ Knocked back. 04621_ Imp. Heat Sink destroyed. 04622_ Penetrated by Slug. 04622_ Slug penetrates Wall. 04624_ Adv. Heat Sink destroyed. 04624_ Penetrated by Slug. Map ----- +----------------------------------------------------+ | ?????????????????????????????????????????????????? | | ?????????????????????????????????????????????????? | | ?????????????????????????????????????????????????? | | ?????????????????????????????????????????????????? | | ?????????????????????????????????????????????????? | | ???????????????? ????????????????????????????????? | | ?????????? ????? ???????????????????????????????? | | ???????? ???? ???????????????????????????????? | | ??????? ???# ???????????????????????????????? | | ???????? ### ???????????????????????????????? | | ????????? ???????????????????????????????? | | ????????? ??????????????????????????????? | | ???????# ???????????????????????????????? | | ?????? ??? ???????????????????????????????? | | ????? ????# #????????????????????????????????? | | ##?? ####### ##???????????????????????????????? | | ## ?# ## #???????????????????????????????? | | ???# #????????????????????????????????? | | #????# #???????????????????????????????? | | ####?# ##??????????????????????????????? | | #### ##?????????????????????????????? | | # ## ##????????????????????????????? | | # % ##??????####?????????????????? | | ######## #####?## ##????????????????? | | ????# %### #????????????????? | | ????# ## ## @ #????????????????? | | ????# ?# # ### ##????????????????? | | ????# ?# ###?# #;#### BB ##?????????????????? | | ### ## #???# ###??#;BBhh #??????????????????? | | #???# ##????#; ##?##??????????????? | | ##???####?????## ## ##?????????????? | | ## #####??????????????# % #?????????????? | | ?###????????????????????# #?????????????? | | ????????????????????????# #?????????????? | | ????????????????????????# ##?????????????? | | ???????????????????????## #??????????????? | | ???????????????????????# #??????????????? | | ??????????????????????## ## #??????????????? | | ?????????????????????## ;###?###??????????????? | | ?????????????????????# #; ????????????????????? | | ?????????????????????# # #????????????????????? | | ?????????????????????# ###????????????????????? | | ?????????????????????## ##??????????????????????? | | ??????????????????????# #???????????????????????? | | ??????????????????????# ##???????????????????????? | | ??????????????????????##?????????????????????????? | | ?????????????????????????????????????????????????? | | ?????????????????????????????????????????????????? | | ?????????????????????????????????????????????????? | | ?????????????????????????????????????????????????? | +----------------------------------------------------+ Best States ------------- Heat Dissipation 76 Energy Generation 32 Energy Capacity 1000 Matter Stores 300 Matter Capacity 300 Sight Range 16 Robot Scan Range 16 Terrain Scan Range 16 Terrain Scan Density 210 Jamming Range 14 Additional Mass Support 6 Base Temperature (-) 150 Armor Coverage 600 Resistance: KI 25 Resistance: EX 25 Weapon Cycling 20 Evasion (%) 60 Targeting Accuracy 8 Target Analysis 6 Energy Filtering 50 Defensive Hacking 14 Item Schematics ----------------- Hcp. Storage Unit | -9/Materials | Scanalyzed Robot Schematics ------------------ None Fabricated ------------ Nothing Repaired ---------- Nothing Studied --------- None Alien Tech Used ----------------- None Achievements -------------- None Challenges ------------ None Game ------ Seed GravitonGodBarrier Manual? 0 Play Time 01:53:55 Cumulative 39.1 hours Start 2026.06.07 @ 08:38:58 End 2026.06.21 @ 09:53:19 Sessions 18 Manual Loads 0 Difficulty Rogue Special Mode None Game No. 68 Rogue 68 Adventurer 0 Explorer 0 Win Type - Total 0 Types 0/0/0/0/0/0/0/0/0/0 Lore% 7 Gallery% 28 Achievement% 21 Wizard Run 0 Options --------- Layout 0 ASCII 1 Keyboard 0 Movement Numpad Keybinds 0 Fullscreen 1 Font 18/SmallcapsGlow Map View 76x50 Zoom Use 29% Tactical HUD 1 Map Filters NONE Filters NONE Steam 1 RUN: 9c92fb1a-559a-41d4-a13f-9109713e675f